Cogmind - Beta 11.1 @@@ ROGUE MODE // 2022.06.24 @ 05:34:51 Player: Stumbler Result: Smashed by cave-in Performance ------------- Evolutions (0) 0 Regions Visited (2) 400 Robots Destroyed (20) 100 Value Destroyed (359) 359 Prototype IDs (0) 0 Alien Tech Used (0) 0 Bonus (0) 0 TOTAL SCORE: 859 Bonus ------- None Cogmind --------- Core Integrity 0/250 Matter 204/300 Energy 156/160 System Corruption 3% Temperature Cool (2) Movement Treading (160) Location -10/Mines Parts ------- > --- POWER (1) -------- Light Nuclear Core > --- PROPULSION (2) --- Light Treads Light Treads > --- UTILITY (2) ------ Large Storage Unit > --- WEAPON (2) ------- Light Assault Rifle > --- INVENTORY (15) --- Light Ion Engine Light Ion Engine Hover Unit Medium Storage Unit Medium Storage Unit Medium Storage Unit Huge Storage Unit ECM Suite Beam Cannon Grenade Launcher Grenade Launcher Peak State ------------ > --- POWER ------------ Light Nuclear Core > --- PROPULSION ------- Light Treads Light Treads > --- UTILITY ---------- Large Storage Unit Signal Interpreter > --- WEAPON ----------- Light Assault Rifle Rocket Launcher > --- INVENTORY -------- Light Ion Engine Light Ion Engine Hover Unit Medium Storage Unit Medium Storage Unit Medium Storage Unit Huge Storage Unit ECM Suite Beam Cannon Grenade Launcher Grenade Launcher [Rating: 11] Favorites ----------- Power Light Ion Engine Engine Light Ion Engine Power Core Light Nuclear Core Propulsion Light Treads Treads Light Treads Leg Aluminum Leg Wheel Wheel Hover Unit Hover Unit Flight Unit Flight Unit Utility Signal Interpreter Device Improved Terrain Scanner Storage Medium Storage Unit Processor Signal Interpreter Weapon Light Assault Rifle Energy Gun Medium Laser Energy Cannon Beam Cannon Ballistic Gun Light Assault Rifle Launcher Grenade Launcher Build | -11 -10 -10 ------- Run | Scr Mat Min Slots Evolved . | . . . Power . | . . . Propulsion . | . . . Utility . | . . . Weapon . | . . . Parts Attached 38 | 10 25 3 Power 6 | 1 5 . Engine 4 | 1 3 . Core 2 | . 2 . Reactor . | . . . Propulsion 14 | 6 8 . Treads 2 | . 2 . Leg 4 | 4 . . Wheel 4 | 2 2 . Hover 2 | . 2 . Flight 2 | . 2 . Utility 7 | 1 4 2 Device 1 | 1 . . Storage 5 | . 3 2 Processor 1 | . 1 . Hackware . | . . . Protection . | . . . Artifact . | . . . Weapon 11 | 2 8 1 Energy Gun 1 | 1 . . Energy Cannon 1 | . 1 . Ballistic Gun 4 | 1 3 . Ballistic Cannon . | . . . Launcher 5 | . 4 1 Special Weapon . | . . . Impact Weapon . | . . . Slashing Weapon . | . . . Piercing Weapon . | . . . Special Melee Weapon . | . . . Unidentified Prototypes . | . . . Parts Lost 3 | . 1 2 Power . | . . . Propulsion 1 | . 1 . Utility 1 | . . 1 Weapon 1 | . . 1 Highest Loss Streak 2 | . 1 2 To Critical Strikes . | . . . Average Slot Usage (%) 95 | . 95 100 Engine 6 | . 7 . Core 7 | . 6 14 Treads 14 | . 13 28 Leg 2 | . 2 . Hover 8 | . 8 . Device 1 | . 1 . Storage 14 | . 14 14 Processor 10 | . 10 14 Energy Cannon 9 | . 9 7 Ballistic Gun 15 | . 15 14 Launcher 2 | . 2 6 Naked Turns . | . . . Heaviest Build 30 | 8 29 30 Greatest Support 40 | 20 40 40 Greatest Overweight (x) 5 | . 5 . Average Overweight (x) . | . . . Largest Inventory Capacity 25 | 5 15 25 Average Capacity 10 | 5 11 15 Most Carried 11 | 5 9 11 Average Carried 7 | 3 7 10 Final Capacity 15 | 5 15 15 Final Carried 11 | 5 9 11 Class Distribution -------------------- 52% | Mutant 47% | Scavenger-Mutant Dominant Class ---------------- Scavenger-Mutant | -10/Materials Scavenger-Mutant | -10/Mines Resources | -11 -10 -10 ----------- Run | Scr Mat Min Matter Collected 678 | 333 311 34 Remotely . | . . . Salvage Created 451 | 112 339 . Parts 32 | 8 24 . Haulers Intercepted 1 | . 1 . Recyclers Shooed 1 | . 1 . Parts Field Recycled . | . . . Retrieved Matter . | . . . Parts Self-Destructed . | . . . Prevented . | . . . Kills | -11 -10 -10 ------- Run | Scr Mat Min Combat Hostiles Destroyed 12 | 1 11 . Guns 6 | 1 5 . Cannons 5 | . 5 . AOE 1 | . 1 . Classes Destroyed 6 | 3 3 . Worker 1 | 1 . . Tunneler 3 | 3 . . Hauler 1 | . 1 . Watcher 3 | . 3 . Swarmer 6 | . 6 . Grunt 6 | 1 5 . Best Kill Streak 5 | 4 5 . Combat Bots Only 4 | 1 4 . Max Kills in Single Turn 2 | 1 2 . Gunslinging . | . . . Exploded 1 | . 1 . Melee . | . . . Uniques/NPCs Destroyed . | . . . Combat | -11 -10 -10 -------- Run | Scr Mat Min Damage Taken 1017 | 103 460 454 Core 255 | 35 126 94 Absorbed by Shields . | . . . Regen/Repaired (Parts) 74 | . 74 . Core Remaining (%) 86 | 86 . . Volleys Fired 61 | 12 41 8 Largest 2 | 2 2 2 Hottest 80 | 70 80 53 Shots Fired 114 | 24 74 16 Gun 81 | 24 49 8 Cannon 17 | . 17 . Launcher 16 | . 8 8 Special . | . . . Kinetic 69 | 12 49 8 Thermal 29 | 12 17 . Explosive 16 | . 8 8 Electromagnetic . | . . . Robot Hit Streak 9 | 4 9 . Robot Miss Streak 4 | 2 4 . Penetration Max . | . . . Secondary Targets . | . . . Shots Hit Robots 56 | 14 42 . Core Hits 30 | 6 24 . Critical Kills . | . . . Critical Parts Destroyed . | . . . Critical Strikes 1 | 1 . . Burn 1 | 1 . . Melee Attacks . | . . . Impact . | . . . Slashing . | . . . Piercing . | . . . Sneak Attacks . | . . . Combat Hostiles . | . . . Follow-up Attacks . | . . . Damage Inflicted 975 | 187 788 . Guns 481 | 187 294 . Cannons 229 | . 229 . Explosions 251 | . 251 . Melee . | . . . Ramming 14 | . 14 . Kinetic 382 | 88 294 . Thermal 328 | 99 229 . Explosive 251 | . 251 . Electromagnetic . | . . . Impact . | . . . Slashing . | . . . Piercing . | . . . Highest Corruption 1 | . 1 1 Average Corruption 1 | . 1 1 Corruption Purged . | . . . Corruption Blocked . | . . . Effects 7 | . 6 1 Message Errors 1 | . 1 . Matter Fused 4 | . 3 1 Data Loss (minor) 2 | . 2 . Overload Shots . | . . . Overflow Damage . | . . . Projectiles . | . . . Explosions . | . . . Melee . | . . . Knockbacks . | . . . Impact . | . . . Kinetic . | . . . Secondary . | . . . Self-Inflicted Damage 134 | . 54 80 Shots 5 | . 3 2 Rammed 2 | . 2 . Targets Rammed 2 | . 2 . Kicked . | . . . Crushed . | . . . Highest Temperature 244 | 60 244 32 Average Temperature 56 | 29 76 17 Received Heat Transfer 150 | 54 96 . Siege Activations . | . . . Robots Corrupted . | . . . Combat Hostiles . | . . . Parts Fried . | . . . Impact Corruptions . | . . . Robots Melted . | . . . Combat Hostiles . | . . . Parts Melted . | . . . Heat Transferred 851 | 370 481 . Parts Sabotaged . | . . . Parts Stolen . | . . . Parts Stripped . | . . . Power Chain Reactions . | . . . Missiles Intercepted . | . . . Alert | -11 -10 -10 ------- Run | Scr Mat Min Peak Influence 287 | 40 287 75 Initial 26 | . 26 . Average 64 | 21 71 25 Maximum Alert Level 1 | . 1 . Low Security (%) 90 | 100 89 100 Level 1 9 | . 10 . Level 2 . | . . . Level 3 . | . . . Level 4 . | . . . Level 5 . | . . . High Security . | . . . Max Security . | . . . Squads Dispatched 2 | . 2 . Investigation 2 | . 2 . Extermination . | . . . Reinforcement . | . . . Assault . | . . . Garrison . | . . . Intercept . | . . . Searches Triggered . | . . . Construction Impeded . | . . . Haulers Reinforced . | . . . Active Scanning Responses . | . . . Cargo Convoy Interrupts . | . . . Stealth | -11 -10 -10 --------- Run | Scr Mat Min Distress Signals 2 | . 2 . Communications Jammed . | . . . Distress Signals . | . . . Times Spotted 15 | 1 14 . Peak Tracking Total 4 | 1 4 . Tactical Retreats 1 | . 1 . Traps | -11 -10 -10 ------- Run | Scr Mat Min Traps Triggered . | . . . Indirectly . | . . . Trap Hack Attempts . | . . . Triggered . | . . . Disarmed . | . . . Reprogrammed 2 | . 2 . Reused . | . . . Traps Extracted . | . . . Installed . | . . . Triggered . | . . . Machines | -11 -10 -10 ---------- Run | Scr Mat Min Machines Disabled 1 | . . 1 Max in Single Turn 1 | . . 1 Machines Sabotaged . | . . . Garrisons Compromised . | . . . Overloaded Fab Kills . | . . . Hacking | -11 -10 -10 --------- Run | Scr Mat Min Machines Accessed 10 | . 10 . Terminals 7 | . 7 . Fabricators . | . . . Repair Stations 1 | . 1 . Recycling Units 2 | . 2 . Scanalyzers . | . . . Garrison Access . | . . . Total Hacks 41 | . 41 . Successful 20 | . 20 . Failed 19 | . 19 . Catastrophic 1 | . 1 . Database Lockouts 2 | . 2 . Manual . | . . . Terminals 30 | . 30 . Fabricators . | . . . Repair Stations 3 | . 3 . Recycling Units 8 | . 8 . Scanalyzers . | . . . Garrison Access . | . . . Terminal Hacks 13 | . 13 . Record 6 | . 6 . Alert Level 1 | . 1 . Locate Traps 2 | . 2 . Reprogram Traps 1 | . 1 . Dispatch Records 1 | . 1 . Security Status 1 | . 1 . Zone Layout 1 | . 1 . Fabricator Hacks . | . . . Repair Station Hacks 2 | . 2 . Scan Component 1 | . 1 . Repair 1 | . 1 . Recycling Unit Hacks 5 | . 5 . Process 2 | . 2 . Report Inventory 1 | . 1 . Retrieve Matter 2 | . 2 . Scanalyzer . | . . . Garrison Access Hacks . | . . . Unauthorized Hacks . | . . . Terminals . | . . . Fabricators . | . . . Repair Stations . | . . . Recycling Units . | . . . Scanalyzers . | . . . Garrison Access . | . . . Data Cores Recovered . | . . . Used . | . . . Hacking Detections 10 | . 10 . Full Trace Events 10 | . 10 . Feedback Events 1 | . 1 . Corruption 1 | . 1 . Feedback Blocked . | . . . Robot Schematics Acquired . | . . . Robots Built . | . . . Authchips . | . . . Time . | . . . Total Robot Build Rating . | . . . Part Schematics Acquired . | . . . Parts Built . | . . . Authchips . | . . . Time . | . . . Total Part Build Rating . | . . . Parts Repaired 1 | . 1 . Time 13 | . 13 . Parts Recycled . | . . . Recycled Matter 65 | . 65 . Retrieved Matter 158 | . 158 . Retrieved Components . | . . . Parts Scanalyzed . | . . . Part Schematics Acquired . | . . . Parts Damaged . | . . . Bothacking | -11 -10 -10 ------------ Run | Scr Mat Min Used RIF Installer . | . . . Robots Hacked . | . . . Non-combat . | . . . Combat . | . . . Robot Hacks Applied . | . . . Relay Couplers Released . | . . . Fabnet Peak Effective % . | . . . Robots Rewired . | . . . Allies Hacked . | . . . Hacks Repelled . | . . . Allies | -11 -10 -10 -------- Run | Scr Mat Min Total Allies . | . . . Largest Group . | . . . Highest-Rated Group . | . . . Highest-Rated Ally . | . . . Total Orders . | . . . Ally Attacks . | . . . Total Damage . | . . . Kills . | . . . Allies Corrupted . | . . . Allies Melted . | . . . Intel | -11 -10 -10 ------- Run | Scr Mat Min Robot Analysis Total . | . . . Derelict Logs Recovered . | . . . Drone Launches . | . . . Drone Recoveries . | . . . Exploration | -11 -10 -10 ------------- Run | Scr Mat Min Turns Passed 2295 | 236 1967 92 Spaces Moved 1382 | 183 1159 40 Core 53 | 38 15 . Treads 619 | . 579 40 Legs 196 | 78 118 . Wheels 100 | 67 33 . Hover 407 | . 407 . Flight 7 | . 7 . Fastest Speed 50 | 50 56 160 Average Speed 146 | 90 154 160 Slowest Speed 300 | 120 300 160 Overloaded Moves . | . . . Propulsion Burnouts . | . . . Robots Hopped . | . . . Cave-ins Triggered 1 | . . 1 Exploration Rate (%) 36 | 6 96 8 Regions Visited 2 Branch Regions 1 Pre-discovered Areas . | . . . Known Exits Taken 1 | . 1 . Unknown Exits Taken 1 | 1 . . Scrap Searched 1 | . . 1 Spaces Dug 71 | . . 71 Terrain Destroyed 116 | . 30 86 Melee . | . . . Projectile . | . . . AOE 116 | . 30 86 Terrain Rammed . | . . . Walls Destroyed . | . . . Machines Disabled . | . . . Actions | -11 -10 -10 --------- Run | Scr Mat Min Total 1538 | 227 1259 52 Wait 10 | 9 1 . Move 1379 | 182 1158 39 Hop . | . . . Pick Up 32 | 12 18 2 Fast Attach 4 | 1 3 . Attach 14 | 5 9 . Detach . | . . . Swap 20 | 4 13 3 Drop 16 | 2 14 . Fire 61 | 12 41 8 Melee . | . . . Ram . | . . . Kick . | . . . Crush 2 | . 2 . Escape Stasis . | . . . Rewire . | . . . Trap . | . . . Miscellaneous . | . . . Route ------- -11/Scrapyard -10/Materials (discovered 4 exits: *Mat x3 / *Min) -10/Mines History --------- Turn | Location | Event 2 | -11/Scrapyard | Met Revision 17 87 | -11/Scrapyard | Discovered new exit (range 8) 237 | -11/Scrapyard | Entered Materials 290 | -10/Materials | Central database locked down 290 | -10/Materials | Central database locked down 304 | -10/Materials | Build established: Mutant 635 | -10/Materials | Discovered new exit (range 16) 862 | -10/Materials | Core integrity fell below 50% 1150 | -10/Materials | Repaired Lgt. Assault Rifle 1253 | -10/Materials | Discovered new exit (range 15) 1295 | -10/Materials | Identified exit to Materials 1524 | -10/Materials | Discovered new exit (range 12) 1541 | -10/Materials | Identified exit to Mines 1575 | -10/Materials | Build established: Scavenger-Mutant 1775 | -10/Materials | Discovered exit to Materials (range 10) 2204 | -10/Materials | Entered Mines 2254 | -10/Mines | Received a Rocket Launcher from a helpful Derelict 2296 | -10/Mines | Crushed by falling debris 2296 | -10/Mines | Smashed by cave-in Last Messages --------------- 02254_ JI-23K(g): "Would you like a rocket launcher? I know I would if I were you, so I'm going to lend you mine." 02254_ JI-23K(g) slips back into the shadows. 02254_ K-01 Serf collects debris. 02256_ Acquired Rocket Launcher. 02258_ K-01 Serf collects debris. When the line of fire is red, you are attempting to shoot through an object at another target, which incurs significant penalties. 02259_ Pulverizer disabled. 02262_ K-01 Serf collects debris. 02270_ The unstable cave ceiling collapses. 02270_ K-01 Serf collects debris. 02276_ The unstable cave ceiling collapses. 02296_ Crushed by falling debris. [Achievement: Unlikely Earthworm] 02296_ Rocket Launcher destroyed. 02296_ System corrupted by crushing effect (+1). 02296_ Signal Interpreter destroyed. 02296_ System corrupted by crushing effect (+1). [Achievement: First Step to Greatness] Map ----- +----------------------------------------------------+ | ???????????????????????????????????? | | ???????????????????????????????????? | | ???????????????????????????????????? | | ???????????????????????????????????? | | ???????????????????????????????????? | | ???????????????????????????????????? | | ???????????????????????????????????? | | ???????????????????????????????????? | | ???????????????????????????????????? | | ???????????????????????????????????? | | ????????????? ?????????????????????? | | ????#####???# ?????????????????????? | | ???## #### ??????????????????????? | | ???# ??????????????????????? | | ??## ???????####????????????? | | ??# ???????## ##???????????? | | ??# ??????## #???????????? | | ?## ??????## ##???????????? | | ?# ###???## ##????????????? | | ?# ##### ##?????????????? | | ??# %! ##??????????????? | | ???## #### ##???????????????? | | ???# # # #####????????????????? | | ??### ##???????????????????? | | ??# # #???????????????????? | | ??# @ #???????????????????? | | ??# " #?????????????????? | | ??# """" # #????????????????? | | ??# """" ## ?????????????? | | ??########## # ??????????? | | ???????????## # ??????????? | | ????????????? ##?? ?????????? | | ?????????????## #?????#?????????? | | ???????????????## ##???????????????? | | ?????????????????##????????????????? | | ???????????????????????????????????? | | ???????????????????????????????????? | | | | | | | | | | | | | | | | | | | | | | | | | | | +----------------------------------------------------+ Best States ------------- Heat Dissipation 25 Energy Generation 14 Energy Capacity 160 Matter Stores 300 Matter Capacity 300 Sight Range 16 Terrain Scan Range 16 Terrain Scan Density 10 Evasion (%) 55 Recoil Reduction 2 Item Schematics ----------------- None Robot Schematics ------------------ None Fabricated ------------ Nothing Alien Tech Used ----------------- None Achievements -------------- First Step to Greatness Loot Pinata Novice Programmer One Hack Too Far Part-time Mechanic Universal Adapter Unlikely Earthworm Challenges ------------ None Game ------ Seed NetworkHardcellCleaver Manual? 0 Play Time 00:30:48 Cumulative 0.9 hours Start 2022.06.24 @ 05:03:55 End 2022.06.24 @ 05:34:51 Sessions 1 Manual Loads 0 Difficulty Rogue Special Mode None Game No. 1 Rogue 1 Adventurer 0 Explorer 0 Win Type - Total 0 Types 0/0/0/0/0/0/0/0/0 Lore% 0 Gallery% 1 Achievement% 2 Wizard Run 0 Options --------- ASCII 0 Keyboard 0 Movement Arrows Keybinds 0 Fullscreen 1 Font 24/Smallcaps Map View 76x50 Tactical HUD 1 Map Filters NONE Filters NONE Steam 1 RUN: b7a348d5-7d7c-4c4a-bfd1-9cda682d4014